Workbook

Sheet Лист1
A1: Школа | C1: ГБОУ "Маскаринская школа- интернат для детей с ограниченными возможностями здоровья" | F1: Утвердил: | G1: должность | H1: директор
A2: Типовое примерное меню приготавливаемых блюд | G2: фамилия | H2: Сабитов Ш. Н.
A3: Возрастная категория | E3: 7-11 лет | G3: дата | H3: 18 | I3: 9 | J3: 2024
H4: день | I4: месяц | J4: год
A5: Неделя | B5: День недели | C5: Прием пищи | D5: Раздел меню | E5: Блюда | F5: Вес блюда, г | G5: Белки | H5: Жиры | I5: Углеводы | J5: Калорийность | K5: № рецептуры | L5: Цена
A6: 1 | B6: 3 | C6: Завтрак | D6: гор.блюдо | E6: Омлет | F6: 200/5 | G6: 16.6 | H6: 18.24 | I6: 2.88 | J6: 200 | K6: 19 | L6: 25.12
D7: гор.напиток | E7: Какао с молоком | F7: 200 | G7: 4.62 | H7: 4.02 | I7: 43.8 | J7: 135 | K7: 63 | L7: 8.37
D8: хлеб | E8: Хлеб пшеничный | F8: 120 | G8: 3.1 | H8: 0.2 | I8: 20.1 | J8: 284.1 | K8: 37 | L8: 9.13
D9: масло слив. | E9: Масло слив. | F9: 15 | G9: 0.4 | H9: 62.5 | I9: 0.8 | J9: 105 | K9: 50 | L9: 9.64
D10: фрукты | E10: Апельсин | F10: 100 | G10: 1.4 | H10: 0.3 | I10: 8.1 | J10: 36 | K10: 61 | L10: 12.7
D13: итого | F13: =SUM(F6:F12) -> 435 | G13: =SUM(G6:G12) -> 26.12 | H13: =SUM(H6:H12) -> 85.26 | I13: =SUM(I6:I12) -> 75.68 | J13: =SUM(J6:J12) -> 760.1 | L13: 64.96
A14: =A6 -> 1 | B14: =B6 -> 3 | C14: Завтрак 2 | D14: фрукты | E14: Банан | F14: 100 | G14: 1.4 | H14: 0.3 | I14: 12.1 | J14: 96 | K14: 62 | L14: 15.3
E15: Хлеб пшеничный | F15: 160 | G15: 3.1 | H15: 0.2 | I15: 20.1 | J15: 378.8 | K15: 37 | L15: 12.18
E16: Компот из с/ф | F16: 200 | G16: 4 | H16: 0.06 | I16: 35.2 | J16: 110 | K16: 53 | L16: 2.53
E17: Треугольник | F17: 80 | G17: 6.23 | H17: 5.38 | I17: 38.25 | J17: 150 | K17: 42 | L17: 27.74
D18: итого | F18: =SUM(F14:F17) -> 540 | G18: =SUM(G14:G17) -> 14.73 | H18: =SUM(H14:H17) -> 5.94 | I18: =SUM(I14:I17) -> 105.65 | J18: =SUM(J14:J17) -> 734.8 | L18: 57.75
A19: =A6 -> 1 | B19: =B6 -> 3 | C19: Обед | D19: закуска | E19: Салат морковный | F19: 100 | G19: 1.16 | H19: 8.3 | I19: 14.6 | J19: 98.8 | K19: 35 | L19: 4.79
D20: 1 блюдо | E20: Борщ к/м со сметаной | F20: 250/15 | G20: 8.4 | H20: 10.3 | I20: 13.7 | J20: 105.2 | K20: 2 | L20: 28.07
D21: 2 блюдо | E21: Каша ячневая с мяс говядины | F21: 200/10 | G21: 11.2 | H21: 5.9 | I21: 63.7 | J21: 445.6 | K21: 13 | L21: 18.49
D22: гарнир
D23: напиток | E23: Сок | F23: 200 | G23: 0.8 | H23: 0 | I23: 23 | J23: 94 | K23: 57 | L23: 12.22
D24: хлеб бел.
D25: хлеб черн. | E25: Хлеб "Дарницкий" | F25: 80 | G25: 2.6 | H25: 0.4 | I25: 17 | J25: 163.2 | K25: 36 | L25: 3.55
D28: итого | F28: =SUM(F19:F27) -> 380 | G28: =SUM(G19:G27) -> 24.16 | H28: =SUM(H19:H27) -> 24.9 | I28: =SUM(I19:I27) -> 132 | J28: =SUM(J19:J27) -> 906.8 | L28: 67.12
A29: =A6 -> 1 | B29: =B6 -> 3 | C29: Полдник | D29: кисломол.
D30: фрукты
D33: итого | F33: =SUM(F29:F32) -> 0 | G33: =SUM(G29:G32) -> 0 | H33: =SUM(H29:H32) -> 0 | I33: =SUM(I29:I32) -> 0 | J33: =SUM(J29:J32) -> 0
A34: =A6 -> 1 | B34: =B6 -> 3 | C34: Ужин | D34: хлеб черн. | E34: Хлеб "Дарницкий" | F34: 80 | G34: 2.6 | H34: 0.4 | I34: 17 | J34: 163.2 | K34: 36 | L34: 3.55
D35: масло слив. | E35: Масло слив. | F35: 15 | G35: 0.4 | H35: 62.5 | I35: 0.8 | J35: 105 | K35: 50 | L35: 9.64
D36: 1 блюдо | E36: Суп молочный рожки | F36: 200/5 | G36: 8 | H36: 9 | I36: 25.2 | J36: 214.8 | K36: 6 | L36: 22.09
D37: творог | E37: Творог со сметаной | F37: 200/10 | G37: 18 | H37: 9 | I37: 3 | J37: 164.3 | K37: 40 | L37: 84.18
D38: гор.напиток | E38: Чай слад. | F38: 200 | G38: 0.1 | H38: 0 | I38: 9.9 | J38: 39.9 | K38: 51 | L38: 2
D40: итого | F40: =SUM(F34:F39) -> 295 | G40: =SUM(G34:G39) -> 29.1 | H40: =SUM(H34:H39) -> 80.9 | I40: =SUM(I34:I39) -> 55.9 | J40: =SUM(J34:J39) -> 687.2 | L40: 121.46
A41: =A6 -> 1 | B41: =B6 -> 3 | C41: Ужин 2 | D41: кисломол. | E41: Ряженка | F41: 200 | G41: 12 | H41: 2 | I41: 8.4 | J41: 134 | K41: 58 | L41: 20.06
D42: фрукты | E42: Яблоки св. | F42: 100 | G42: 0.6 | H42: 0.6 | I42: 14.3 | J42: 68.6 | K42: 60 | L42: 6.3
D43: напиток
D47: итого | F47: =SUM(F41:F46) -> 300 | G47: =SUM(G41:G46) -> 12.6 | H47: =SUM(H41:H46) -> 2.6 | I47: =SUM(I41:I46) -> 22.7 | J47: =SUM(J41:J46) -> 202.6 | L47: 26.36
A48: =A6 -> 1 | B48: =B6 -> 3 | C48: Итого за день: | F48: =F13+F18+F28+F33+F40+F47 -> 1950 | G48: =G13+G18+G28+G33+G40+G47 -> 106.71 | H48: =H13+H18+H28+H33+H40+H47 -> 199.6 | I48: =I13+I18+I28+I33+I40+I47 -> 391.93 | J48: =J13+J18+J28+J33+J40+J47 -> 3291.5 | L48: 337.65
